fUSD/lending_fUSD_20250825
["ID","MTS","AMOUNT","RATE_DAILY","PERIOD"]
[381151600,1756085444127,-204.16547613,0.00020473,2]
[381151601,1756085444136,-500.0,0.00020473,2]
[381151602,1756085444145,-500.0,0.00020473,2]
[381151603,1756085444155,-500.0,0.00020473,2]
[381151604,1756085444164,-500.0,0.00020473,2]
[381151605,1756085444174,-500.0,0.00020473,2]
[381151606,1756085444183,-500.0,0.00020473,2]
[381151607,1756085444192,-500.0,0.00020473,2]
[381151608,1756085444201,-501.33999993,0.00020473,2]
[381151609,1756085444211,-666.0,0.00020473,2]
[381151610,1756085444221,-666.0,0.00020473,2]
[381151611,1756085444230,-400.0,0.00020473,2]
[381151612,1756085444240,-400.0,0.00020473,2]
[381151613,1756085444249,-400.0,0.00020473,2]
[381151614,1756085444260,-400.0,0.00020473,2]
[381151615,1756085444273,-400.0,0.00020473,2]
[381151616,1756085444283,-400.0,0.00020473,2]
[381151617,1756085444293,-400.0,0.00020473,2]
[381151618,1756085444302,-400.0,0.00020473,2]
[381151619,1756085444312,-400.0,0.00020473,2]
[381151620,1756085444321,-400.0,0.00020473,2]
[381151621,1756085444331,-400.0,0.00020473,2]
[381151622,1756085444340,-400.0,0.00020473,2]
[381151623,1756085444350,-368.7781335,0.00020473,2]
[381151624,1756085445223,-31.2218665,0.00020473,2]
[381151625,1756085445233,-400.0,0.00020473,2]
[381151626,1756085445243,-400.0,0.00020473,2]
[381151627,1756085445253,-400.0,0.00020473,2]
[381151628,1756085445263,-400.0,0.00020473,2]
[381151629,1756085445274,-400.0,0.00020473,2]
[381151630,1756085445283,-400.0,0.00020473,2]
[381151631,1756085445293,-400.0,0.00020473,2]
[381151632,1756085445303,-1380.45,0.00020473,2]
[381151633,1756085445312,-400.0,0.00020473,2]
[381151635,1756085445321,-400.0,0.00020473,2]
[381151637,1756085445331,-1299.58,0.00020473,2]
[381151638,1756085445340,-14615.77,0.00020473,2]
[381151639,1756085445349,-14615.77,0.00020473,2]
[381151640,1756085445359,-14615.77,0.00020473,2]
[381151641,1756085445368,-14615.77,0.00020473,2]
[381151642,1756085445377,-14615.77,0.00020473,2]
[381151643,1756085445386,-14615.77,0.00020473,2]
[381151644,1756085445395,-14615.77,0.00020473,2]
[381151645,1756085445404,-400.0,0.00020473,2]
[381151646,1756085445414,-1394.72,0.00020473,2]
[381151647,1756085445423,-400.0,0.00020473,2]
[381151648,1756085445432,-171.29908386,0.00020473,2]
[381151649,1756085445441,-400.0,0.00020473,2]
[381151650,1756085445450,-1153.04,0.00020473,2]
[381151651,1756085445460,-1383.94,0.00020473,2]
[381151652,1756085445469,-400.0,0.00020473,2]
[381151653,1756085445478,-400.0,0.00020473,2]
[381151654,1756085445487,-1606.05,0.00020473,2]
[381151655,1756085445496,-857.84,0.00020473,2]
[381151656,1756085445506,-1986.12,0.00020473,2]
[381151657,1756085445515,-400.0,0.00020473,2]
[381151658,1756085445525,-747.0,0.00020473,2]
[381151659,1756085445534,-400.0,0.00020473,2]
[381151660,1756085445543,-1552.71,0.00020473,2]
[381151661,1756085445553,-1497.13,0.00020473,2]
[381151662,1756085445562,-151.0,0.00020473,2]
[381151663,1756085445571,-500.0,0.00020473,2]
[381151665,1756085445580,-500.0,0.00020473,2]
[381151667,1756085445589,-500.0,0.00020473,2]
[381151668,1756085445598,-500.0,0.00020473,2]
[381151669,1756085445608,-475.0,0.00020473,2]
[381151670,1756085445617,-500.0,0.00020473,2]
[381151671,1756085445626,-151.0,0.00020473,2]
[381151672,1756085445635,-500.0,0.00020473,2]
[381151673,1756085445644,-151.0,0.00020473,2]
[381151674,1756085445654,-500.0,0.00020473,2]
[381151675,1756085445663,-500.0,0.00020473,2]
[381151676,1756085445673,-151.0,0.00020473,2]
[381151677,1756085445682,-151.0,0.00020473,2]
[381151678,1756085445692,-151.0,0.00020473,2]
[381151679,1756085445702,-224.5712171,0.00020473,2]
[381151680,1756085445712,-400.0,0.00020473,2]
[381151681,1756085445722,-400.0,0.00020473,2]
[381151682,1756085445731,-151.0,0.00020473,2]
[381151683,1756085445744,-151.0,0.00020473,2]
[381151684,1756085445753,-151.0,0.00020473,2]
[381151685,1756085445762,-500.0,0.00020473,2]
[381151686,1756085445773,-400.0,0.00020473,2]
[381151687,1756085445782,-400.0,0.00020473,2]
[381151688,1756085445793,-151.0,0.00020473,2]
[381151689,1756085445802,-151.0,0.00020473,2]
[381151690,1756085445811,-151.0,0.00020473,2]
[381151691,1756085445823,-400.0,0.00020473,2]
[381151692,1756085445832,-151.0,0.00020473,2]
[381151693,1756085445841,-205.80912,0.00020473,2]
[381151694,1756085445850,-151.0,0.00020473,2]
[381151695,1756085445859,-246.493882,0.00020473,2]
[381151696,1756085445868,-151.0,0.00020473,2]
[381151697,1756085445877,-1381.43,0.00020473,2]
[381151698,1756085445886,-151.0,0.00020473,2]
[381151699,1756085445896,-151.0,0.00020473,2]
[381151700,1756085445906,-400.0,0.00020473,2]
[381151701,1756085445915,-151.0,0.00020473,2]
[381151702,1756085445923,-670.959786,0.00020473,2]
[381151703,1756085445933,-670.959786,0.00020473,2]
[381151704,1756085445942,-151.0,0.00020473,2]
[381151706,1756085445952,-670.959786,0.00020473,2]
[381151708,1756085445961,-151.0,0.00020473,2]
[381151710,1756085445970,-400.0,0.00020473,2]
[381151712,1756085445980,-670.959786,0.00020473,2]
[381151714,1756085445989,-670.959786,0.00020473,2]
[381151715,1756085445999,-670.959786,0.00020473,2]
[381151716,1756085446008,-151.0,0.00020473,2]
[381151717,1756085446017,-670.959786,0.00020473,2]
[381151718,1756085446028,-151.0,0.00020473,2]
[381151719,1756085446037,-670.959786,0.00020473,2]
[381151720,1756085446046,-670.959786,0.00020473,2]
[381151721,1756085446055,-400.0,0.00020473,2]
[381151723,1756085446065,-400.0,0.00020473,2]
[381151725,1756085446074,-670.959786,0.00020473,2]
[381151726,1756085446084,-670.959786,0.00020473,2]
[381151727,1756085446093,-670.959786,0.00020473,2]
[381151728,1756085446102,-151.0,0.00020473,2]
[381151729,1756085446112,-151.0,0.00020473,2]
[381151730,1756085446121,-151.0,0.00020473,2]
[381151731,1756085446130,-400.0,0.00020473,2]
[381151732,1756085446139,-400.0,0.00020473,2]
[381151733,1756085446149,-1152.75,0.00020473,2]
[381151734,1756085446159,-400.0,0.00020473,2]
[381151735,1756085446168,-151.0,0.00020473,2]
[381151736,1756085446177,-151.0,0.00020473,2]
[381151737,1756085446187,-400.0,0.00020473,2]
[381151738,1756085446196,-400.0,0.00020473,2]
[381151739,1756085446205,-400.0,0.00020473,2]
[381151740,1756085446215,-151.0,0.00020473,2]
[381151741,1756085446225,-151.0,0.00020473,2]
[381151742,1756085446234,-151.0,0.00020473,2]
[381151743,1756085446243,-151.0,0.00020473,2]
[381151744,1756085446253,-151.0,0.00020473,2]
[381151745,1756085446262,-187.357495,0.00020473,2]
[381151746,1756085446272,-400.0,0.00020473,2]
[381151747,1756085446282,-1815.53,0.00020473,2]
[381151748,1756085446291,-150.0,0.00020473,2]
[381151749,1756085446301,-151.0,0.00020473,2]
[381151750,1756085446310,-151.0,0.00020473,2]
[381151751,1756085446319,-151.0,0.00020473,2]
[381151752,1756085446329,-500.0,0.00020473,2]
[381151753,1756085446339,-151.0,0.00020473,2]
[381151754,1756085446350,-151.0,0.00020473,2]
[381151755,1756085446360,-151.0,0.00020473,2]
[381151756,1756085446369,-151.0,0.00020473,2]
[381151757,1756085446378,-151.0,0.00020473,2]
[381151758,1756085446387,-151.0,0.00020473,2]
[381151759,1756085446396,-151.0,0.00020473,2]
[381151760,1756085446406,-159.310359,0.00020473,2]
[381151761,1756085446415,-188.450076,0.00020473,2]
[381151762,1756085446424,-400.0,0.00020473,2]
[381151763,1756085446433,-151.0,0.00020473,2]
[381151764,1756085446442,-151.0,0.00020473,2]
[381151765,1756085446451,-255.099771,0.00020473,2]
[381151766,1756085446461,-400.0,0.00020473,2]
[381151767,1756085446470,-151.0,0.00020473,2]
[381151768,1756085446479,-151.0,0.00020473,2]
[381151769,1756085446488,-151.0,0.00020473,2]
[381151770,1756085446497,-150.0,0.00020473,2]
[381151771,1756085446506,-500.0,0.00020473,2]
[381151772,1756085446516,-150.0,0.00020473,2]
[381151773,1756085446526,-281.55018658,0.00020473,2]
[381151774,1756085446535,-500.0,0.00020473,2]
[381151775,1756085446544,-151.0,0.00020473,2]
[381151776,1756085446554,-151.0,0.00020473,2]
[381151777,1756085446563,-151.0,0.00020473,2]
[381151778,1756085446572,-151.0,0.00020473,2]
[381151779,1756085446583,-151.0,0.00020473,2]
[381151780,1756085446592,-151.0,0.00020473,2]
[381151781,1756085446603,-150.0,0.00020473,2]
[381151782,1756085446613,-151.0,0.00020473,2]
[381151783,1756085446623,-1691.95,0.00020473,2]
[381151784,1756085446632,-151.0,0.00020473,2]
[381151785,1756085446642,-151.0,0.00020473,2]
[381151786,1756085446651,-151.0,0.00020473,2]
[381151787,1756085446660,-1230.76,0.00020473,2]
[381151788,1756085446670,-151.0,0.00020473,2]
[381151789,1756085446679,-160.380644,0.00020473,2]
[381151790,1756085446690,-151.0,0.00020473,2]
[381151791,1756085446700,-151.0,0.00020473,2]
[381151792,1756085446710,-151.0,0.00020473,2]
[381151793,1756085446719,-151.0,0.00020473,2]
[381151794,1756085446728,-151.0,0.00020473,2]
[381151795,1756085446741,-151.0,0.00020473,2]
[381151796,1756085446752,-151.0,0.00020473,2]
[381151797,1756085446761,-151.0,0.00020473,2]
[381151798,1756085446770,-400.0,0.00020473,2]
[381151799,1756085446784,-3757.57,0.00020473,2]
[381151800,1756085446793,-400.0,0.00020473,2]
[381151801,1756085446803,-151.0,0.00020473,2]
[381151802,1756085446813,-153.191037,0.00020473,2]
[381151803,1756085446822,-400.0,0.00020473,2]
[381151804,1756085446833,-2162.01,0.00020473,2]
[381151805,1756085447127,-400.0,0.00020473,2]
[381151806,1756085447137,-151.0,0.00020473,2]
[381151807,1756085447147,-151.0,0.00020473,2]
[381151808,1756085447157,-400.0,0.00020473,2]
[381151809,1756085447166,-151.0,0.00020473,2]
[381151810,1756085447178,-1204.01,0.00020473,2]
[381151811,1756085447187,-151.0,0.00020473,2]
[381151812,1756085447197,-400.0,0.00020473,2]
[381151813,1756085447206,-150.0,0.00020473,2]
[381151814,1756085447215,-150.0,0.00020473,2]
[381151815,1756085447224,-151.0,0.00020473,2]
[381151816,1756085447234,-151.0,0.00020473,2]
[381151817,1756085447243,-1839.36,0.00020473,2]
[381151818,1756085447253,-151.0,0.00020473,2]
[381151819,1756085447262,-151.0,0.00020473,2]
[381151820,1756085447271,-2203.73,0.00020473,2]
[381151821,1756085447284,-400.0,0.00020473,2]
[381151822,1756085447294,-151.0,0.00020473,2]
[381151823,1756085447304,-151.0,0.00020473,2]
[381151824,1756085447314,-151.0,0.00020473,2]
[381151825,1756085447323,-151.0,0.00020473,2]
[381151826,1756085447333,-151.0,0.00020473,2]
[381151827,1756085447343,-151.0,0.00020473,2]
[381151828,1756085447353,-244.930222,0.00020473,2]
[381151829,1756085447362,-151.0,0.00020473,2]
[381151830,1756085447372,-400.0,0.00020473,2]
[381151831,1756085447381,-151.0,0.00020473,2]
[381151832,1756085447391,-192.071453,0.00020473,2]
[381151833,1756085447399,-400.0,0.00020473,2]
[381151834,1756085447409,-151.0,0.00020473,2]
[381151835,1756085447418,-151.0,0.00020473,2]
[381151836,1756085447428,-151.0,0.00020473,2]
[381151837,1756085447438,-151.0,0.00020473,2]
[381151838,1756085447447,-400.0,0.00020473,2]
[381151839,1756085447456,-151.0,0.00020473,2]
[381151840,1756085447465,-151.0,0.00020473,2]
[381151841,1756085447475,-151.0,0.00020473,2]
[381151842,1756085447483,-400.0,0.00020473,2]
[381151843,1756085447492,-151.0,0.00020473,2]
[381151844,1756085447502,-279.674735,0.00020473,2]
[381151845,1756085447511,-1651.67,0.00020473,2]
[381151846,1756085447520,-400.0,0.00020473,2]
[381151847,1756085447532,-152.001809,0.00020473,2]
[381151848,1756085447541,-1243.69,0.00020473,2]
[381151849,1756085447551,-179.100175,0.00020473,2]
[381151850,1756085447560,-400.0,0.00020473,2]
[381151851,1756085447569,-151.0,0.00020473,2]
[381151852,1756085447579,-158.386774,0.00020473,2]
[381151853,1756085447589,-1184.9,0.00020473,2]
[381151854,1756085447598,-150.0,0.00020473,2]
[381151855,1756085447607,-150.0,0.00020473,2]
[381151856,1756085447616,-400.0,0.00020473,2]
[381151857,1756085447625,-400.0,0.00020473,2]
[381151858,1756085447634,-153.448907,0.00020473,2]
[381151859,1756085447643,-736.960175,0.00020473,2]
[381151860,1756085447652,-151.0,0.00020473,2]
[381151861,1756085447662,-151.0,0.00020473,2]
[381151862,1756085447671,-151.0,0.00020473,2]
[381151863,1756085447680,-151.0,0.00020473,2]
[381151864,1756085447689,-157.397506,0.00020473,2]
[381151865,1756085447699,-151.0,0.00020473,2]
[381151866,1756085447708,-151.0,0.00020473,2]
[381151867,1756085447717,-151.231244,0.00020473,2]
[381151868,1756085447726,-170.157939,0.00020473,2]
[381151869,1756085447736,-151.0,0.00020473,2]
[381151870,1756085447750,-151.0,0.00020473,2]
[381151871,1756085447760,-151.0,0.00020473,2]
[381151872,1756085447769,-151.0,0.00020473,2]
[381151873,1756085447779,-1699.35,0.00020473,2]
[381151874,1756085447788,-161.279625,0.00020473,2]
[381151875,1756085447797,-151.0,0.00020473,2]
[381151876,1756085447806,-151.0,0.00020473,2]
[381151877,1756085447816,-151.154652,0.00020473,2]
[381151878,1756085447828,-341.562033,0.00020473,2]
[381151879,1756085447837,-400.0,0.00020473,2]
[381151880,1756085447846,-151.0,0.00020473,2]
[381151881,1756085447856,-151.0,0.00020473,2]
[381151882,1756085447866,-151.0,0.00020473,2]
[381151883,1756085447876,-1097.38,0.00020473,2]
[381151884,1756085447885,-666.0,0.00020473,2]
[381151885,1756085447895,-666.0,0.00020473,2]
[381151886,1756085447904,-300.0,0.00020473,2]
[381151887,1756085447915,-666.0,0.00020473,2]
[381151888,1756085447924,-666.0,0.00020473,2]
[381151889,1756085447933,-1823.0,0.00020473,2]
[381151890,1756085447942,-300.0,0.00020473,2]
[381151891,1756085447951,-300.0,0.00020474,2]
[381151892,1756085447960,-21356.56357894,0.00020474,8]
[381151893,1756085447970,-155159.33957377,0.00020474,8]
[381151894,1756085449193,-176.32722548,0.000186,2]
[381151895,1756085449203,-400.0,0.00020472,2]
[381151896,1756085449212,-962.81304581,0.00020474,8]
[381151897,1756085449232,-1524.25,0.00020474,8]
[381151898,1756085480266,365.31,0.00026233,120]
[381151899,1756085480488,365.31,0.00028617,120]
[381151906,1756085595085,2033.998909,0.00028494,120]
[381151907,1756085601179,512.275417,0.00028494,120]
[381151909,1756085698586,167.0876607,0.00028767,120]
[381151914,1756085804292,474.0,0.00028767,120]
[381151926,1756086173048,460.92752198,0.00028767,120]
[381151927,1756086195476,400.0,0.00028767,120]
[381151930,1756086336873,288.0,0.00028767,120]
[381151933,1756086362056,-158.11,0.00013699,2]
[381151934,1756086409662,-200.0,0.00019056,2]
[381151935,1756086409688,-149.18329832,0.00019077,2]
[381151936,1756086412012,-347.544329,0.00019077,2]
[381151937,1756086415611,-399.91564548,0.00019077,2]
[381151938,1756086419864,-103.3567272,0.00019077,2]
[381151939,1756086419889,-178.45997448,0.00019078,2]
[381151942,1756086423833,-186.85002552,0.00019078,2]
[381151943,1756086423858,-113.96667616,0.0001919,2]
[381151944,1756086427720,-51.00332384,0.0001919,2]
[381151945,1756086427742,-175.33667616,0.0001919,2]
[381151946,1756086430359,-41.58332384,0.0001919,2]
[381151947,1756086430382,-308.41667616,0.00019194,3]
[381151948,1756086432050,-269.0,0.00019194,3]
[381151949,1756086436737,-88.58332384,0.00019194,3]
[381151950,1756086436759,-177.59997448,0.0001927,2]
[381151951,1756086441592,-300.0,0.0001927,2]
[381151952,1756086445147,-1022.40002552,0.0001927,2]
[381151953,1756086445171,-704.79526842,0.0001927,2]
[381151954,1756086448754,-501.16473158,0.0001927,2]
[381151955,1756086448781,-286.46,0.00019358,2]
[381151956,1756086448805,-170.13,0.00019469,2]
[381151958,1756086523732,325.57,0.00026389,120]
[381152075,1756086593184,1086.03693164,0.00021,30]
[381152076,1756086603435,-158.11,0.00013699,2]
[381152077,1756086603463,-125.61747597,0.00019136,2]
[381152089,1756086608087,-74.38252403,0.00019136,2]
[381152090,1756086608111,-150.61,0.00019158,2]
[381152091,1756086608433,-75.00747597,0.00019189,2]
[381152093,1756086621601,-300.0,0.00019189,2]
[381152094,1756086625413,-180.197459,0.00019189,2]
[381152095,1756086627149,-199.18329832,0.00019189,2]
[381152096,1756086629296,-245.61176671,0.00019189,2]
[381152097,1756086629320,-19.98048297,0.00019192,2]
[381152101,1756086632473,-281.81670168,0.00019192,2]
[381152102,1756086632666,-23.77281535,0.00019192,2]
[381152103,1756086632676,-1721.53,0.00019223,2]
[381152104,1756086632685,-150.76,0.00019232,2]
[381152105,1756086632695,-1200.0,0.00019269,2]
[381152106,1756086632703,-530.0,0.000194,2]
[381152107,1756086632713,-151.55,0.000194,2]
[381152108,1756086632722,-938.26,0.000195,2]
[381152109,1756086632731,-800.0,0.000195,7]
[381152110,1756086632740,-351.0,0.000195,2]
[381152111,1756086632749,-168.0,0.00019502,2]
[381152112,1756086632759,-1700.0,0.000196,7]
[381152113,1756086632768,-2600.0,0.000197,7]
[381152114,1756086632777,-300.0,0.00019784,2]
[381152115,1756086632788,-168.0,0.00019785,2]
[381152116,1756086632798,-3400.0,0.000198,7]
[381152117,1756086632807,-168.0,0.00019806,2]
[381152118,1756086632816,-229.171038,0.00019863,2]
[381152119,1756086632825,-173.67,0.00019878,2]
[381152120,1756086632834,-137.64883294,0.00019878,2]
[381152121,1756086632846,-123.04116706,0.00019878,2]
[381152122,1756086632855,-4300.0,0.000199,7]
[381152123,1756086632864,-539.42,0.00019918,2]
[381152124,1756086632873,-527.81588054,0.00019988,2]
[381152125,1756086632882,-267.46074303,0.00019988,2]
[381152126,1756086632891,-20360.63767873,0.0001999,2]
[381152127,1756086632902,-758.18239473,0.0001999,2]
[381152128,1756086632954,-438.47196682,0.0001999,2]
[381152129,1756086632971,-7288.44413233,0.0001999,2]
[381152131,1756086636043,-1424.43748025,0.0001999,2]
[381152132,1756086637647,-3700.40273479,0.0001999,2]
[381152133,1756086637657,-154.0,0.00019999,2]
[381152134,1756086637668,-72000.0,0.0002,2]
[381152135,1756086637677,-196.97339821,0.0002,2]
[381152136,1756086637687,-1273.97,0.00020063,2]
[381152137,1756086637696,-1286.01,0.00020063,2]
[381152138,1756086637706,-1268.17,0.00020063,2]
[381152139,1756086637715,-934.0,0.00020068,2]
[381152140,1756086637724,-934.0,0.00020078,2]
[381152141,1756086637733,-5139.0,0.0002008,2]
[381152142,1756086637743,-4687.37,0.00020092,7]
[381152143,1756086637752,-934.0,0.00020152,2]
[381152144,1756086637762,-5837.2002472,0.00020212,2]
[381152145,1756086637771,-934.0,0.00020219,2]
[381152146,1756086637780,-169.33091994,0.00020229,2]
[381152147,1756086637789,-934.0,0.00020232,2]
[381152148,1756086637799,-5837.20024718,0.00020252,2]
[381152149,1756086637808,-1107.06662,0.0002027,2]
[381152150,1756086637817,-4978.44864082,0.00020271,2]
[381152151,1756086637827,-583.14378719,0.00020276,2]
[381152152,1756086637836,-5837.20024718,0.00020292,2]
[381152153,1756086637845,-599.73451297,0.00020298,2]
[381152154,1756086637855,-2500.0,0.00020299,2]
[381152155,1756086637864,-314.05418729,0.00020299,2]
[381152156,1756086637873,-1004.0,0.000203,2]
[381152157,1756086637882,-3974.67312379,0.000203,2]
[381152158,1756086637892,-200.0,0.00020312,2]
[381152159,1756086637901,-934.0,0.00020329,2]
[381152161,1756086637910,-5837.20024718,0.00020332,2]
[381152162,1756086637919,-3974.67312372,0.00020338,2]
[381152164,1756086637928,-1000.0,0.00020344,2]
[381152166,1756086637937,-934.0,0.00020366,2]
[381152168,1756086637947,-5000.0,0.00020366,2]
[381152170,1756086637956,-1656.91348857,0.00020372,2]
[381152172,1756086637965,-5837.20024718,0.00020372,2]
[381152174,1756086637974,-246.7898,0.00020373,2]
[381152176,1756086637983,-167.18091762,0.00020373,2]
[381152178,1756086637992,-1085.39932254,0.00020374,2]
[381152180,1756086638002,-3236.42187061,0.00020374,2]
[381152182,1756086638011,-12426.81420708,0.00020375,2]
[381152184,1756086638020,-802.74093108,0.00020375,3]
[381152186,1756086638030,-3974.67312372,0.00020376,2]
[381152188,1756086638039,-285.87269265,0.00020378,2]
[381152190,1756086638048,-667.25946633,0.0002039,2]
[381152192,1756086638058,-934.0,0.00020391,2]
[381152194,1756086638067,-400.0,0.00020397,2]
[381152196,1756086638078,-1068.37,0.00020397,2]
[381152198,1756086638088,-400.0,0.00020397,2]
[381152200,1756086638098,-400.0,0.00020397,2]
[381152202,1756086638107,-400.0,0.00020397,2]
[381152204,1756086638117,-1240.4,0.00020397,2]
[381152206,1756086638126,-995.5,0.00020397,2]
[381152208,1756086638136,-400.0,0.00020397,2]
[381152210,1756086638146,-648.35,0.00020397,2]
[381152212,1756086638156,-400.0,0.00020397,2]
[381152214,1756086638166,-400.0,0.00020397,2]
[381152216,1756086638175,-400.0,0.00020397,2]
[381152218,1756086638184,-713.7,0.00020397,2]
[381152220,1756086638194,-1308.16,0.00020397,2]
[381152222,1756086638203,-400.0,0.00020397,2]
[381152224,1756086638212,-400.0,0.00020397,2]
[381152226,1756086638221,-400.0,0.00020397,2]
[381152228,1756086638231,-400.0,0.00020398,2]
[381152230,1756086638240,-400.0,0.00020398,2]
[381152232,1756086638248,-400.0,0.00020398,2]
[381152234,1756086638257,-400.0,0.00020398,2]
[381152236,1756086638266,-400.0,0.00020398,2]
[381152238,1756086638275,-400.0,0.00020398,2]
[381152240,1756086638284,-400.0,0.00020398,2]
[381152242,1756086638295,-400.0,0.00020398,2]
[381152244,1756086638305,-1304.63,0.00020398,2]
[381152245,1756086638314,-400.0,0.00020398,2]
[381152247,1756086638323,-400.0,0.00020398,2]
[381152250,1756086638333,-400.0,0.00020398,2]
[381152252,1756086638342,-400.0,0.00020398,2]
[381152254,1756086638352,-180.20855243,0.00020398,2]
[381152256,1756086638361,-400.0,0.00020398,2]
[381152258,1756086638371,-1540.85,0.00020398,2]
[381152259,1756086638380,-400.0,0.00020398,2]
[381152261,1756086638389,-400.0,0.00020398,2]
[381152263,1756086638398,-400.0,0.00020398,2]
[381152265,1756086638408,-1491.56,0.00020398,2]
[381152268,1756086638418,-400.0,0.00020398,2]
[381152269,1756086638427,-400.0,0.00020398,2]
[381152270,1756086638437,-400.0,0.00020398,2]
[381152271,1756086638446,-1324.13,0.00020398,2]
[381152272,1756086638456,-400.0,0.00020398,2]
[381152273,1756086638465,-400.0,0.00020398,2]
[381152274,1756086638475,-400.0,0.00020398,2]
[381152275,1756086638484,-400.0,0.00020398,2]
[381152276,1756086638494,-400.0,0.00020398,2]
[381152277,1756086638503,-886.59,0.00020398,2]
[381152278,1756086638512,-400.0,0.00020398,2]
[381152279,1756086638521,-1132.69,0.00020398,2]
[381152280,1756086638531,-708.41,0.00020398,2]
[381152281,1756086638540,-682.35,0.00020398,2]
[381152282,1756086638551,-400.0,0.00020398,2]
[381152283,1756086638561,-400.0,0.00020398,2]
[381152284,1756086638570,-400.0,0.00020398,2]
[381152285,1756086638579,-400.0,0.00020398,2]
[381152286,1756086638588,-726.89,0.00020398,2]
[381152287,1756086638597,-400.0,0.00020398,2]
[381152288,1756086638607,-1326.7,0.00020398,2]
[381152289,1756086638616,-400.0,0.00020398,2]
[381152290,1756086638626,-400.0,0.00020398,2]
[381152291,1756086638636,-400.68210095,0.00020398,2]
[381152292,1756086638645,-1306.95,0.00020398,2]
[381152293,1756086638654,-240.49859565,0.00020398,2]
[381152294,1756086638663,-953.42,0.00020398,2]
[381152295,1756086638672,-400.0,0.00020398,2]
[381152296,1756086638681,-607.98,0.00020398,2]
[381152297,1756086638690,-400.0,0.00020398,2]
[381152298,1756086638700,-1622.72,0.00020398,2]
[381152299,1756086638709,-448.13,0.00020398,2]
[381152300,1756086638719,-400.0,0.00020398,2]
[381152301,1756086638729,-453.54,0.00020398,2]
[381152302,1756086638739,-400.0,0.00020398,2]
[381152303,1756086638748,-400.0,0.00020398,2]
[381152304,1756086638758,-1434.74,0.00020398,2]
[381152305,1756086638768,-433.53,0.00020398,2]
[381152306,1756086638777,-400.0,0.00020398,2]
[381152307,1756086638787,-400.0,0.00020398,2]
[381152308,1756086638797,-3001.06,0.00020398,2]
[381152309,1756086638807,-400.0,0.00020398,2]
[381152310,1756086638816,-400.5464173,0.00020398,2]
[381152311,1756086638826,-400.0,0.00020398,2]
[381152312,1756086638836,-592.47,0.00020398,2]
[381152313,1756086638844,-748.87,0.00020398,2]
[381152314,1756086638854,-1376.14,0.00020398,2]
[381152315,1756086638864,-400.0,0.00020398,2]
[381152316,1756086638873,-1238.62,0.00020398,2]
[381152317,1756086638882,-908.26,0.00020398,2]
[381152318,1756086638893,-684.78,0.00020398,2]
[381152319,1756086638902,-1298.88,0.00020398,2]
[381152320,1756086638912,-10354.02,0.00020398,2]
[381152321,1756086638921,-400.0,0.00020398,2]
[381152322,1756086638931,-859.14,0.00020398,2]
[381152323,1756086638940,-898.57,0.00020398,2]
[381152324,1756086638949,-666.44,0.00020398,2]
[381152325,1756086638958,-1342.6,0.00020398,2]